[Event "*** Titled Tuesday Blitz"]
[Site "Chess.com"]
[Date "2020.10.27"]
[Round "8"]
[White "xberli"]
[Black "PauloCesarCosta_sad"]
[Result "0-1"]
[WhiteElo "2532"]
[BlackElo "2334"]
[TimeControl "180+1"]
[EndTime "11:28:17 PDT"]
[Termination "PauloCesarCosta_sad won on time"]

1. e4 {[%clk 0:03:00.9]} 1... e6 {[%clk 0:02:57.7]} 2. d4 {[%clk 0:03:00.6]}
2... d5 {[%clk 0:02:58.3]} 3. Nc3 {[%clk 0:03:01.1]} 3... Nf6 {[%clk 0:02:57.8]}
4. e5 {[%clk 0:03:01.2]} 4... Nfd7 {[%clk 0:02:57.8]} 5. f4 {[%clk 0:03:01.8]}
5... c5 {[%clk 0:02:58.1]} 6. Nf3 {[%clk 0:03:02.4]} 6... Nc6 {[%clk 0:02:58.4]}
7. Be3 {[%clk 0:03:02.2]} 7... cxd4 {[%clk 0:02:58.7]} 8. Nxd4 {[%clk
0:03:03.1]} 8... Bc5 {[%clk 0:02:58.9]} 9. Qd2 {[%clk 0:03:01]} 9... O-O {[%clk
0:02:54.6]} 10. O-O-O {[%clk 0:02:58.2]} 10... a6 {[%clk 0:02:48.5]} 11. Qf2
{[%clk 0:02:51.4]} 11... Bxd4 {[%clk 0:02:31]} 12. Bxd4 {[%clk 0:02:51.1]} 12...
b5 {[%clk 0:02:31.9]} 13. Ne2 {[%clk 0:02:46.3]} 13... f6 {[%clk 0:02:19.9]} 14.
exf6 {[%clk 0:02:25.2]} 14... Nxd4 {[%clk 0:02:19.3]} 15. Nxd4 {[%clk
0:02:13.1]} 15... Qxf6 {[%clk 0:02:12.3]} 16. Qe3 {[%clk 0:01:59.8]} 16... e5
{[%clk 0:02:07.4]} 17. fxe5 {[%clk 0:01:57.1]} 17... Nxe5 {[%clk 0:02:01]} 18.
Be2 {[%clk 0:01:46.5]} 18... Bg4 {[%clk 0:02:00.1]} 19. Rhf1 {[%clk 0:01:41.1]}
19... Qd6 {[%clk 0:01:52.9]} 20. Rxf8+ {[%clk 0:00:54.2]} 20... Rxf8 {[%clk
0:01:43.3]} 21. h3 {[%clk 0:00:46.9]} 21... Nc4 {[%clk 0:01:35.4]} 22. Qg5
{[%clk 0:00:22]} 22... Bxe2 {[%clk 0:01:23.6]} 23. Nxe2 {[%clk 0:00:22.9]} 23...
Rf2 {[%clk 0:01:23.8]} 24. Nc3 {[%clk 0:00:16.4]} 24... Qb4 {[%clk 0:01:12.9]}
25. Qxd5+ {[%clk 0:00:13.9]} 25... Rf7 {[%clk 0:01:05.7]} 26. Qd8+ {[%clk
0:00:11]} 26... Rf8 {[%clk 0:01:01.9]} 27. Qd5+ {[%clk 0:00:10.4]} 27... Kh8
{[%clk 0:00:57.2]} 28. b3 {[%clk 0:00:02.6]} 28... Qa3+ {[%clk 0:00:49.5]} 0-1

[Event "*** Titled Tuesday Blitz"]
[Site "Chess.com"]
[Date "2020.10.27"]
[Round "8"]
[White "Marina_Chess_Rus"]
[Black "AlexeiShirov"]
[Result "0-1"]
[WhiteElo "2272"]
[BlackElo "2788"]
[TimeControl "180+1"]
[EndTime "11:28:26 PDT"]
[Termination "AlexeiShirov won by resignation"]

1. d4 {[%clk 0:03:00.9]} 1... d5 {[%clk 0:02:55.8]} 2. Nf3 {[%clk 0:03:00.1]}
2... Nf6 {[%clk 0:02:54.3]} 3. c4 {[%clk 0:02:57.9]} 3... c6 {[%clk 0:02:53.8]}
4. Nc3 {[%clk 0:02:57]} 4... e6 {[%clk 0:02:53.4]} 5. cxd5 {[%clk 0:02:54]} 5...
exd5 {[%clk 0:02:52.8]} 6. Bg5 {[%clk 0:02:53.6]} 6... h6 {[%clk 0:02:51.9]} 7.
Bh4 {[%clk 0:02:53.1]} 7... Bf5 {[%clk 0:02:51.9]} 8. e3 {[%clk 0:02:51.1]} 8...
Nbd7 {[%clk 0:02:50]} 9. Bd3 {[%clk 0:02:50.8]} 9... Bxd3 {[%clk 0:02:47.6]} 10.
Qxd3 {[%clk 0:02:50.3]} 10... Be7 {[%clk 0:02:47.9]} 11. O-O {[%clk 0:02:50]}
11... O-O {[%clk 0:02:48.4]} 12. Rab1 {[%clk 0:02:47.7]} 12... a5 {[%clk
0:02:46.9]} 13. Rfc1 {[%clk 0:02:42.1]} 13... Re8 {[%clk 0:02:44.4]} 14. Ne5
{[%clk 0:02:20.9]} 14... Nxe5 {[%clk 0:02:28.6]} 15. dxe5 {[%clk 0:02:20.3]}
15... Nd7 {[%clk 0:02:28.5]} 16. Bxe7 {[%clk 0:02:18]} 16... Qxe7 {[%clk
0:02:27.6]} 17. f4 {[%clk 0:02:14.4]} 17... f6 {[%clk 0:02:25.2]} 18. exf6
{[%clk 0:01:59.6]} 18... Nxf6 {[%clk 0:02:24.4]} 19. Re1 {[%clk 0:01:59.5]}
19... Qc5 {[%clk 0:02:21.3]} 20. Qd4 {[%clk 0:01:46.8]} 20... b6 {[%clk
0:02:09.8]} 21. Na4 {[%clk 0:01:33]} 21... Qb5 {[%clk 0:02:01.3]} 22. b3 {[%clk
0:01:14.1]} 22... c5 {[%clk 0:02:00.8]} 23. Qb2 {[%clk 0:01:10.7]} 23... Re7
{[%clk 0:01:57.6]} 24. Nc3 {[%clk 0:01:10.2]} 24... Qc6 {[%clk 0:01:55.6]} 25.
Rbd1 {[%clk 0:01:09.2]} 25... Rae8 {[%clk 0:01:54.5]} 26. Qd2 {[%clk 0:01:09.2]}
26... Rd7 {[%clk 0:01:46.6]} 27. Qd3 {[%clk 0:00:58.7]} 27... c4 {[%clk
0:01:42.9]} 28. Qd2 {[%clk 0:00:55.3]} 28... b5 {[%clk 0:01:39.7]} 29. a4 {[%clk
0:00:42]} 29... b4 {[%clk 0:01:36.9]} 30. Nb5 {[%clk 0:00:41.7]} 30... c3 {[%clk
0:01:31.8]} 31. Qd3 {[%clk 0:00:39.6]} 31... Re4 {[%clk 0:01:30.8]} 32. Nd4
{[%clk 0:00:38.6]} 32... Qc5 {[%clk 0:01:27.7]} 33. Re2 {[%clk 0:00:33.4]} 33...
Rde7 {[%clk 0:01:23.4]} 34. Nf5 {[%clk 0:00:33.2]} 34... Re8 {[%clk 0:01:20.7]}
35. h3 {[%clk 0:00:30.3]} 35... d4 {[%clk 0:01:10.1]} 36. Nxd4 {[%clk
0:00:25.6]} 36... Nd5 {[%clk 0:01:09.8]} 37. Nf5 {[%clk 0:00:18.6]} 37... Nxf4
{[%clk 0:01:06.5]} 38. Qc2 {[%clk 0:00:07.1]} 38... Nxe2+ {[%clk 0:01:05.7]} 39.
Qxe2 {[%clk 0:00:07]} 39... Qxf5 {[%clk 0:01:05.7]} 0-1

[Event "*** Titled Tuesday Blitz"]
[Site "Chess.com"]
[Date "2020.10.27"]
[Round "8"]
[White "ChelsieMonica"]
[Black "Lenyas66"]
[Result "1-0"]
[WhiteElo "2346"]
[BlackElo "2452"]
[TimeControl "180+1"]
[EndTime "11:28:30 PDT"]
[Termination "ChelsieMonica won by resignation"]

1. e4 {[%clk 0:03:00.9]} 1... e6 {[%clk 0:02:59.6]} 2. d3 {[%clk 0:02:58.3]}
2... d5 {[%clk 0:02:59.6]} 3. Be2 {[%clk 0:02:57.2]} 3... c5 {[%clk 0:02:57]} 4.
f3 {[%clk 0:02:53.7]} 4... Bd6 {[%clk 0:02:50]} 5. f4 {[%clk 0:02:52.9]} 5...
Nc6 {[%clk 0:02:40.8]} 6. e5 {[%clk 0:02:51.6]} 6... Bc7 {[%clk 0:02:39.8]} 7.
Nf3 {[%clk 0:02:51.1]} 7... Nge7 {[%clk 0:02:37.5]} 8. O-O {[%clk 0:02:49.4]}
8... O-O {[%clk 0:02:36.3]} 9. c3 {[%clk 0:02:48.4]} 9... f6 {[%clk 0:02:23.8]}
10. d4 {[%clk 0:02:41.5]} 10... Bb6 {[%clk 0:02:19]} 11. Be3 {[%clk 0:02:23.2]}
11... cxd4 {[%clk 0:02:09.3]} 12. cxd4 {[%clk 0:02:23.3]} 12... Nf5 {[%clk
0:02:02.8]} 13. Bf2 {[%clk 0:02:20.1]} 13... fxe5 {[%clk 0:02:03.1]} 14. fxe5
{[%clk 0:02:18.6]} 14... g5 {[%clk 0:01:51.4]} 15. h3 {[%clk 0:02:14.4]} 15...
h5 {[%clk 0:01:51.1]} 16. g4 {[%clk 0:02:08.5]} 16... hxg4 {[%clk 0:01:50.4]}
17. hxg4 {[%clk 0:02:09.4]} 17... Nh6 {[%clk 0:01:43.1]} 18. Nh2 {[%clk
0:02:04]} 18... Rxf2 {[%clk 0:01:35.5]} 19. Rxf2 {[%clk 0:02:04.1]} 19... Bxd4
{[%clk 0:01:35.3]} 20. Kg2 {[%clk 0:01:55.9]} 20... Bxf2 {[%clk 0:01:32.9]} 21.
Kxf2 {[%clk 0:01:56.8]} 21... Qb6+ {[%clk 0:01:30.3]} 22. Kg2 {[%clk 0:01:53.8]}
22... Qxb2 {[%clk 0:01:26.8]} 23. Nd2 {[%clk 0:01:52.8]} 23... Nxe5 {[%clk
0:01:11.8]} 24. Rb1 {[%clk 0:01:50.5]} 24... Qd4 {[%clk 0:01:08.7]} 25. Ndf3
{[%clk 0:01:48.6]} 25... Qxd1 {[%clk 0:01:08.4]} 26. Rxd1 {[%clk 0:01:47.1]}
26... Nhf7 {[%clk 0:01:06.5]} 27. Rc1 {[%clk 0:01:45.7]} 27... Bd7 {[%clk
0:01:03.6]} 28. Rc7 {[%clk 0:01:44.3]} 28... Bc6 {[%clk 0:01:03.9]} 29. Nd4
{[%clk 0:01:41.7]} 29... Nd8 {[%clk 0:00:49.4]} 30. Nf1 {[%clk 0:01:26.1]} 30...
Nef7 {[%clk 0:00:42.2]} 31. Ne3 {[%clk 0:01:17.3]} 31... Nd6 {[%clk 0:00:42.1]}
32. Re7 {[%clk 0:01:10.1]} 32... e5 {[%clk 0:00:33.5]} 33. Rxe5 {[%clk
0:01:08.8]} 33... N8f7 {[%clk 0:00:31.6]} 34. Re6 {[%clk 0:01:03.5]} 34... Re8
{[%clk 0:00:30.7]} 35. Rxe8+ {[%clk 0:01:01.4]} 35... Nxe8 {[%clk 0:00:28.5]}
36. Nef5 {[%clk 0:01:00]} 36... Kf8 {[%clk 0:00:25.6]} 37. Ne6+ {[%clk
0:00:56.9]} 37... Kg8 {[%clk 0:00:24.6]} 38. Ne7+ {[%clk 0:00:57.1]} 38... Kh8
{[%clk 0:00:22.6]} 39. Nd4 {[%clk 0:00:52.3]} 39... Nf6 {[%clk 0:00:20.3]} 40.
Nexc6 {[%clk 0:00:51.3]} 40... bxc6 {[%clk 0:00:20.4]} 41. Nxc6 {[%clk
0:00:52.2]} 41... Ne5 {[%clk 0:00:18.5]} 42. Nxe5 {[%clk 0:00:51.8]} 1-0

[Event "*** Titled Tuesday Blitz"]
[Site "Chess.com"]
[Date "2020.10.27"]
[Round "8"]
[White "zurzan"]
[Black "keepitcoming"]
[Result "0-1"]
[WhiteElo "2056"]
[BlackElo "2540"]
[TimeControl "180+1"]
[EndTime "11:28:30 PDT"]
[Termination "keepitcoming won by resignation"]

1. f4 {[%clk 0:03:00.9]} 1... e5 {[%clk 0:02:57.5]} 2. fxe5 {[%clk 0:03:00.6]}
2... d6 {[%clk 0:02:57]} 3. exd6 {[%clk 0:03:01.5]} 3... Bxd6 {[%clk 0:02:55.7]}
4. Nf3 {[%clk 0:03:02.4]} 4... Nf6 {[%clk 0:02:55.7]} 5. Nc3 {[%clk 0:03:00.9]}
5... O-O {[%clk 0:02:47.7]} 6. g3 {[%clk 0:02:53.7]} 6... Bg4 {[%clk 0:02:35.8]}
7. Bg2 {[%clk 0:02:53.4]} 7... Nbd7 {[%clk 0:02:32.8]} 8. O-O {[%clk 0:02:52.7]}
8... Re8 {[%clk 0:02:27.9]} 9. d3 {[%clk 0:02:52.1]} 9... c6 {[%clk 0:02:20]}
10. Bg5 {[%clk 0:02:44.1]} 10... Qc7 {[%clk 0:02:18.7]} 11. e4 {[%clk
0:02:41.7]} 11... Qb6+ {[%clk 0:02:16.2]} 12. Kh1 {[%clk 0:02:34.7]} 12... Qxb2
{[%clk 0:02:12.5]} 13. Qd2 {[%clk 0:02:34.3]} 13... Qa3 {[%clk 0:02:05.6]} 14.
Ne2 {[%clk 0:02:22.6]} 14... h6 {[%clk 0:02:00]} 15. Be3 {[%clk 0:02:19.5]}
15... Rad8 {[%clk 0:01:57.3]} 16. h3 {[%clk 0:02:08.7]} 16... Bxf3 {[%clk
0:01:50.2]} 17. Bxf3 {[%clk 0:02:06.8]} 17... c5 {[%clk 0:01:46.6]} 18. Kg2
{[%clk 0:02:04.6]} 18... c4 {[%clk 0:01:42.5]} 19. Qc3 {[%clk 0:01:43]} 19...
Ne5 {[%clk 0:01:33]} 20. Qxa3 {[%clk 0:01:42.2]} 20... Bxa3 {[%clk 0:01:33.9]}
21. Bxa7 {[%clk 0:01:21.8]} 21... Nxd3 {[%clk 0:01:34.8]} 22. cxd3 {[%clk
0:01:21.1]} 22... cxd3 {[%clk 0:01:24.5]} 23. Nf4 {[%clk 0:01:12]} 23... Nxe4
{[%clk 0:01:23.8]} 24. Rad1 {[%clk 0:00:58.9]} 24... d2 {[%clk 0:01:16.9]} 25.
Bxe4 {[%clk 0:00:44.9]} 25... Rxe4 {[%clk 0:01:13.7]} 26. Kf3 {[%clk 0:00:42.8]}
26... Re7 {[%clk 0:01:06.4]} 27. Be3 {[%clk 0:00:40]} 27... Bb4 {[%clk
0:01:03.5]} 28. Rf2 {[%clk 0:00:39.2]} 28... g5 {[%clk 0:01:01.1]} 29. Nh5
{[%clk 0:00:33.2]} 29... Rd3 {[%clk 0:00:54]} 30. Nf6+ {[%clk 0:00:31.6]} 30...
Kg7 {[%clk 0:00:49.9]} 31. Ne4 {[%clk 0:00:32.5]} 31... f5 {[%clk 0:00:45.9]}
32. Rfxd2 {[%clk 0:00:32]} 32... fxe4+ {[%clk 0:00:42.5]} 33. Ke2 {[%clk
0:00:30.8]} 33... Bxd2 {[%clk 0:00:40.3]} 34. Rxd2 {[%clk 0:00:29.9]} 34...
Rxd2+ {[%clk 0:00:39.2]} 35. Bxd2 {[%clk 0:00:30.8]} 35... Kg6 {[%clk
0:00:39.1]} 36. Ke3 {[%clk 0:00:29.9]} 36... Kf5 {[%clk 0:00:38]} 37. Bb4 {[%clk
0:00:29.7]} 37... Rd7 {[%clk 0:00:37.4]} 38. a3 {[%clk 0:00:30.6]} 38... Rd3+
{[%clk 0:00:37.2]} 39. Ke2 {[%clk 0:00:31.3]} 39... Rxg3 {[%clk 0:00:36.1]} 40.
h4 {[%clk 0:00:30.4]} 40... gxh4 {[%clk 0:00:35.9]} 0-1

[Event "*** Titled Tuesday Blitz"]
[Site "Chess.com"]
[Date "2020.10.27"]
[Round "8"]
[White "Zkid"]
[Black "deep306"]
[Result "1-0"]
[WhiteElo "2811"]
[BlackElo "2590"]
[TimeControl "180+1"]
[EndTime "11:28:32 PDT"]
[Termination "Zkid won by resignation"]

1. e4 {[%clk 0:03:00.9]} 1... e6 {[%clk 0:02:54.4]} 2. d4 {[%clk 0:03:00.6]}
2... d5 {[%clk 0:02:54.7]} 3. Nc3 {[%clk 0:03:01.3]} 3... Bb4 {[%clk 0:02:53.6]}
4. Ne2 {[%clk 0:03:01.2]} 4... dxe4 {[%clk 0:02:53]} 5. a3 {[%clk 0:03:01.3]}
5... Be7 {[%clk 0:02:52.8]} 6. Nxe4 {[%clk 0:03:01.4]} 6... Nf6 {[%clk
0:02:53.5]} 7. Nxf6+ {[%clk 0:03:01.7]} 7... Bxf6 {[%clk 0:02:54.1]} 8. Be3
{[%clk 0:03:02.2]} 8... b6 {[%clk 0:02:51.2]} 9. Qd3 {[%clk 0:02:55.7]} 9... Bb7
{[%clk 0:02:45.1]} 10. O-O-O {[%clk 0:02:51.1]} 10... Qe7 {[%clk 0:02:43.4]} 11.
Rg1 {[%clk 0:02:48.8]} 11... Nd7 {[%clk 0:02:41.5]} 12. g4 {[%clk 0:02:47.9]}
12... h6 {[%clk 0:02:41.1]} 13. Bg2 {[%clk 0:02:42.4]} 13... O-O-O {[%clk
0:02:36.5]} 14. Ng3 {[%clk 0:02:34.4]} 14... g6 {[%clk 0:02:08.7]} 15. Bxb7+
{[%clk 0:02:05.7]} 15... Kxb7 {[%clk 0:02:08.1]} 16. Qe4+ {[%clk 0:02:06.4]}
16... c6 {[%clk 0:02:06.7]} 17. Rd3 {[%clk 0:02:04.3]} 17... Bg7 {[%clk
0:02:01.1]} 18. Qf3 {[%clk 0:01:43.5]} 18... Nf6 {[%clk 0:01:58.5]} 19. c4
{[%clk 0:01:42.1]} 19... Ne8 {[%clk 0:01:24.7]} 20. d5 {[%clk 0:01:19.7]} 20...
exd5 {[%clk 0:01:10.4]} 21. cxd5 {[%clk 0:01:20.6]} 21... Qf6 {[%clk 0:00:45.7]}
22. dxc6+ {[%clk 0:01:17.5]} 22... Kc8 {[%clk 0:00:45.1]} 23. Rxd8+ {[%clk
0:01:15.3]} 23... Kxd8 {[%clk 0:00:38.9]} 24. Rd1+ {[%clk 0:00:50.7]} 24... Kc8
{[%clk 0:00:38.5]} 25. Qe2 {[%clk 0:00:48]} 25... Qxc6+ {[%clk 0:00:37.7]} 26.
Kb1 {[%clk 0:00:48.3]} 26... Kb7 {[%clk 0:00:33.8]} 27. Bd4 {[%clk 0:00:45.8]}
27... Bxd4 {[%clk 0:00:31.3]} 28. Rxd4 {[%clk 0:00:46.7]} 28... Nf6 {[%clk
0:00:30.5]} 29. Qe7+ {[%clk 0:00:44.4]} 29... Kb8 {[%clk 0:00:24.6]} 30. Rd6
{[%clk 0:00:38.9]} 30... Nd5 {[%clk 0:00:13]} 31. Qe5 {[%clk 0:00:36.7]} 1-0

[Event "*** Titled Tuesday Blitz"]
[Site "Chess.com"]
[Date "2020.10.27"]
[Round "8"]
[White "Nils_03"]
[Black "WiktoriaPOL"]
[Result "1-0"]
[WhiteElo "2251"]
[BlackElo "2084"]
[TimeControl "180+1"]
[EndTime "11:28:35 PDT"]
[Termination "Nils_03 won by resignation"]

1. Nf3 {[%clk 0:03:00.9]} 1... c5 {[%clk 0:02:58.9]} 2. g3 {[%clk 0:03:01.8]}
2... Nc6 {[%clk 0:02:58.6]} 3. Bg2 {[%clk 0:03:02.7]} 3... g6 {[%clk 0:02:58.9]}
4. O-O {[%clk 0:03:02.1]} 4... Bg7 {[%clk 0:02:59.4]} 5. e4 {[%clk 0:03:02.3]}
5... e6 {[%clk 0:02:56.5]} 6. c3 {[%clk 0:02:59.5]} 6... d5 {[%clk 0:02:54.2]}
7. exd5 {[%clk 0:02:54.3]} 7... exd5 {[%clk 0:02:53.9]} 8. Re1+ {[%clk
0:02:51.9]} 8... Nge7 {[%clk 0:02:53.5]} 9. d4 {[%clk 0:02:52.8]} 9... cxd4
{[%clk 0:02:52.9]} 10. cxd4 {[%clk 0:02:48.5]} 10... O-O {[%clk 0:02:52]} 11. h3
{[%clk 0:02:46.3]} 11... Nf5 {[%clk 0:02:40.9]} 12. Be3 {[%clk 0:02:45.9]} 12...
Nxe3 {[%clk 0:02:39.1]} 13. Rxe3 {[%clk 0:02:41.3]} 13... Qb6 {[%clk 0:02:37.7]}
14. Rb3 {[%clk 0:02:39.2]} 14... Qa5 {[%clk 0:02:33.2]} 15. Nc3 {[%clk
0:02:35.8]} 15... Be6 {[%clk 0:01:52.6]} 16. Rb5 {[%clk 0:02:34]} 16... Qc7
{[%clk 0:01:50.7]} 17. Nxd5 {[%clk 0:02:32]} 17... Qd7 {[%clk 0:01:48.9]} 18.
Ne5 {[%clk 0:02:24.4]} 18... Nxe5 {[%clk 0:01:47.5]} 19. Rxb7 {[%clk 0:02:24.1]}
19... Qd6 {[%clk 0:01:14.1]} 20. dxe5 {[%clk 0:02:19.9]} 20... Qxe5 {[%clk
0:01:12.1]} 21. Ne7+ {[%clk 0:02:09.4]} 21... Kh8 {[%clk 0:01:11.2]} 22. Nc6
{[%clk 0:02:08.3]} 22... Qf6 {[%clk 0:00:49.3]} 23. Qf3 {[%clk 0:02:03.2]} 23...
Qxf3 {[%clk 0:00:43.1]} 24. Bxf3 {[%clk 0:02:04.1]} 24... Bxh3 {[%clk
0:00:41.7]} 25. Rb1 {[%clk 0:01:57.1]} 25... Bf5 {[%clk 0:00:40.3]} 26. Re1
{[%clk 0:01:56.3]} 26... Rfe8 {[%clk 0:00:33.4]} 27. Rxe8+ {[%clk 0:01:53.9]}
27... Rxe8 {[%clk 0:00:34.3]} 28. Nxa7 {[%clk 0:01:52.6]} 28... Re1+ {[%clk
0:00:33.4]} 29. Kg2 {[%clk 0:01:52.4]} 29... Kg8 {[%clk 0:00:26.9]} 30. Nc6
{[%clk 0:01:48.5]} 30... Bf8 {[%clk 0:00:24.1]} 31. a4 {[%clk 0:01:44.3]} 31...
Ra1 {[%clk 0:00:21.9]} 32. a5 {[%clk 0:01:44.1]} 32... g5 {[%clk 0:00:16.3]} 33.
g4 {[%clk 0:01:42.5]} 33... Be6 {[%clk 0:00:14]} 34. b4 {[%clk 0:01:41.5]} 34...
Kg7 {[%clk 0:00:09.4]} 35. b5 {[%clk 0:01:41.1]} 35... Ra4 {[%clk 0:00:08.4]}
36. a6 {[%clk 0:01:36]} 36... Bxg4 {[%clk 0:00:08.1]} 37. a7 {[%clk 0:01:31.3]}
37... Bxf3+ {[%clk 0:00:07.7]} 38. Kxf3 {[%clk 0:01:32.2]} 38... g4+ {[%clk
0:00:07.4]} 39. Kg2 {[%clk 0:01:32.3]} 39... h5 {[%clk 0:00:06.4]} 40. Rb8
{[%clk 0:01:31.1]} 40... Bd6 {[%clk 0:00:05.6]} 41. a8=Q {[%clk 0:01:29.3]}
41... Rf4 {[%clk 0:00:04]} 42. Rg8+ {[%clk 0:01:27.2]} 42... Kf6 {[%clk
0:00:03]} 43. Qd8+ {[%clk 0:01:26.3]} 43... Ke6 {[%clk 0:00:02.7]} 44. Re8+
{[%clk 0:01:25.1]} 44... Kd5 {[%clk 0:00:02.7]} 45. Re5+ {[%clk 0:01:22.3]}
45... Kc4 {[%clk 0:00:02.6]} 46. Qxd6 {[%clk 0:01:21.2]} 1-0

[Event "*** Titled Tuesday Blitz"]
[Site "Chess.com"]
[Date "2020.10.27"]
[Round "8"]
[White "AsaHoffmann"]
[Black "Vandros57"]
[Result "1/2-1/2"]
[WhiteElo "2354"]
[BlackElo "2217"]
[TimeControl "180+1"]
[EndTime "11:28:37 PDT"]
[Termination "Game drawn by stalemate"]

1. d4 {[%clk 0:02:08.5]} 1... d5 {[%clk 0:02:58.2]} 2. Bg5 {[%clk 0:02:05.8]}
2... Nd7 {[%clk 0:02:55.8]} 3. c4 {[%clk 0:02:05.2]} 3... h6 {[%clk 0:02:48.9]}
4. Bh4 {[%clk 0:02:04.4]} 4... dxc4 {[%clk 0:02:46.9]} 5. Nc3 {[%clk 0:02:03.5]}
5... Ngf6 {[%clk 0:02:43.9]} 6. e4 {[%clk 0:02:02.7]} 6... e5 {[%clk 0:02:38.4]}
7. Bxc4 {[%clk 0:01:59.8]} 7... exd4 {[%clk 0:02:31.8]} 8. Qxd4 {[%clk
0:01:59.4]} 8... Bc5 {[%clk 0:02:30.3]} 9. Bxf6 {[%clk 0:01:45]} 9... Qxf6
{[%clk 0:02:17.4]} 10. Qxf6 {[%clk 0:01:44.3]} 10... Nxf6 {[%clk 0:02:16.3]} 11.
Nf3 {[%clk 0:01:40.1]} 11... Be6 {[%clk 0:02:12.8]} 12. Bxe6 {[%clk 0:01:39.1]}
12... fxe6 {[%clk 0:02:12.1]} 13. O-O {[%clk 0:01:38]} 13... Ke7 {[%clk
0:02:10]} 14. Ne5 {[%clk 0:01:37.2]} 14... Rhd8 {[%clk 0:02:06]} 15. Rac1 {[%clk
0:01:35.8]} 15... Bb6 {[%clk 0:02:04]} 16. h3 {[%clk 0:01:29.5]} 16... c6 {[%clk
0:02:01.1]} 17. Rfd1 {[%clk 0:01:28]} 17... Rxd1+ {[%clk 0:01:58.3]} 18. Rxd1
{[%clk 0:01:27.7]} 18... Rd8 {[%clk 0:01:57.4]} 19. Rxd8 {[%clk 0:01:26.9]}
19... Bxd8 {[%clk 0:01:51.4]} 20. Kf1 {[%clk 0:01:26]} 20... Bc7 {[%clk
0:01:49.7]} 21. Nc4 {[%clk 0:01:25.2]} 21... b5 {[%clk 0:01:44.7]} 22. Nd2
{[%clk 0:01:21.4]} 22... Be5 {[%clk 0:01:39.1]} 23. Nd1 {[%clk 0:01:17.8]} 23...
Kd6 {[%clk 0:01:34.8]} 24. g3 {[%clk 0:01:17.1]} 24... g5 {[%clk 0:01:33.5]} 25.
Ke2 {[%clk 0:01:16.4]} 25... Kc5 {[%clk 0:01:32]} 26. Nb3+ {[%clk 0:01:08.9]}
26... Kb6 {[%clk 0:01:28.9]} 27. Ke3 {[%clk 0:01:05.3]} 27... a5 {[%clk
0:01:21.9]} 28. f4 {[%clk 0:01:04.8]} 28... gxf4+ {[%clk 0:01:19.2]} 29. gxf4
{[%clk 0:01:04.8]} 29... Bb8 {[%clk 0:01:17.8]} 30. Nf2 {[%clk 0:01:03.7]} 30...
a4 {[%clk 0:01:15.5]} 31. Nd4 {[%clk 0:01:03.5]} 31... e5 {[%clk 0:01:10.8]} 32.
Ne2 {[%clk 0:01:02.2]} 32... exf4+ {[%clk 0:01:05.9]} 33. Nxf4 {[%clk
0:01:01.7]} 33... c5 {[%clk 0:01:04.4]} 34. Nd5+ {[%clk 0:01:00.2]} 34... Nxd5+
{[%clk 0:01:03.1]} 35. exd5 {[%clk 0:01:00.3]} 35... Be5 {[%clk 0:01:02.5]} 36.
b3 {[%clk 0:00:59.6]} 36... axb3 {[%clk 0:01:00.6]} 37. axb3 {[%clk 0:00:59.3]}
37... c4 {[%clk 0:01:00.6]} 38. bxc4 {[%clk 0:00:59]} 38... bxc4 {[%clk
0:00:59.2]} 39. Ke4 {[%clk 0:00:59.1]} 39... Bf6 {[%clk 0:00:55]} 40. Ng4 {[%clk
0:00:56.6]} 40... Bg5 {[%clk 0:00:53.8]} 41. Ne5 {[%clk 0:00:56]} 41... Kc5
{[%clk 0:00:52.1]} 42. Nxc4 {[%clk 0:00:51.2]} 42... Kxc4 {[%clk 0:00:51.1]} 43.
d6 {[%clk 0:00:51.2]} 43... Kc5 {[%clk 0:00:48.8]} 44. d7 {[%clk 0:00:50.9]}
44... Kd6 {[%clk 0:00:47.7]} 45. Kf5 {[%clk 0:00:50.1]} 45... Kxd7 {[%clk
0:00:46.4]} 46. h4 {[%clk 0:00:49.7]} 46... Bd2 {[%clk 0:00:45.4]} 47. h5 {[%clk
0:00:48.9]} 47... Kd6 {[%clk 0:00:45.1]} 48. Kg4 {[%clk 0:00:48.8]} 48... Ke5
{[%clk 0:00:45]} 49. Kh3 {[%clk 0:00:48.6]} 49... Kf4 {[%clk 0:00:44.8]} 50. Kg2
{[%clk 0:00:48.6]} 50... Kg4 {[%clk 0:00:44.4]} 51. Kh1 {[%clk 0:00:48.6]} 51...
Kh3 {[%clk 0:00:44]} 52. Kg1 {[%clk 0:00:48.4]} 52... Be3+ {[%clk 0:00:43.9]}
53. Kh1 {[%clk 0:00:48.4]} 53... Bf2 {[%clk 0:00:39.1]} 1/2-1/2

[Event "*** Titled Tuesday Blitz"]
[Site "Chess.com"]
[Date "2020.10.27"]
[Round "8"]
[White "Arseniy_Nesterov"]
[Black "alexrustemov"]
[Result "1-0"]
[WhiteElo "2808"]
[BlackElo "2668"]
[TimeControl "180+1"]
[EndTime "11:28:42 PDT"]
[Termination "Arseniy_Nesterov won by resignation"]

1. d4 {[%clk 0:03:00.9]} 1... d5 {[%clk 0:02:59.3]} 2. c4 {[%clk 0:03:01.4]}
2... e6 {[%clk 0:02:59.2]} 3. Nc3 {[%clk 0:03:00.2]} 3... Be7 {[%clk 0:02:59.7]}
4. Nf3 {[%clk 0:03:00]} 4... Nf6 {[%clk 0:02:59.5]} 5. Bg5 {[%clk 0:03:00.2]}
5... O-O {[%clk 0:03:00]} 6. e3 {[%clk 0:03:00.2]} 6... h6 {[%clk 0:03:00.5]} 7.
Bh4 {[%clk 0:02:59.6]} 7... b6 {[%clk 0:03:00.6]} 8. Be2 {[%clk 0:02:57.1]} 8...
Bb7 {[%clk 0:02:59.4]} 9. Bxf6 {[%clk 0:02:57.3]} 9... Bxf6 {[%clk 0:02:59.3]}
10. cxd5 {[%clk 0:02:58]} 10... exd5 {[%clk 0:02:59.3]} 11. b4 {[%clk
0:02:58.3]} 11... c6 {[%clk 0:02:59.7]} 12. O-O {[%clk 0:02:57]} 12... a5 {[%clk
0:02:59.8]} 13. b5 {[%clk 0:02:57]} 13... c5 {[%clk 0:02:59]} 14. Ne5 {[%clk
0:02:56.3]} 14... Qd6 {[%clk 0:01:59.4]} 15. f4 {[%clk 0:02:22.3]} 15... Nd7
{[%clk 0:01:54.6]} 16. Bg4 {[%clk 0:02:21.5]} 16... cxd4 {[%clk 0:01:45.3]} 17.
exd4 {[%clk 0:02:15.2]} 17... Nxe5 {[%clk 0:01:28.4]} 18. fxe5 {[%clk
0:02:15.2]} 18... Bxe5 {[%clk 0:01:29]} 19. dxe5 {[%clk 0:02:12.1]} 19... Qc5+
{[%clk 0:01:29.3]} 20. Kh1 {[%clk 0:02:12.5]} 20... Qxc3 {[%clk 0:01:29.8]} 21.
Qe2 {[%clk 0:01:44.3]} 21... Rae8 {[%clk 0:01:27.9]} 22. e6 {[%clk 0:01:43.4]}
22... fxe6 {[%clk 0:01:11.5]} 23. Rxf8+ {[%clk 0:01:38.2]} 23... Rxf8 {[%clk
0:01:12.4]} 24. Qxe6+ {[%clk 0:01:38]} 24... Kh8 {[%clk 0:01:12.5]} 25. Rg1
{[%clk 0:01:38.3]} 25... Qf6 {[%clk 0:01:10]} 26. Qxf6 {[%clk 0:01:32]} 26...
Rxf6 {[%clk 0:01:09.4]} 27. Bf3 {[%clk 0:01:30.4]} 27... Bc8 {[%clk 0:00:45.5]}
28. Bxd5 {[%clk 0:00:56]} 28... Bd7 {[%clk 0:00:45.5]} 29. Rc1 {[%clk
0:00:54.4]} 29... Bxb5 {[%clk 0:00:40.8]} 30. Rc8+ {[%clk 0:00:53.9]} 30... Kh7
{[%clk 0:00:41.2]} 31. Be4+ {[%clk 0:00:53.9]} 31... g6 {[%clk 0:00:41.5]} 32.
h3 {[%clk 0:00:45]} 32... Kg7 {[%clk 0:00:40.2]} 33. Rb8 {[%clk 0:00:42.6]}
33... g5 {[%clk 0:00:39.7]} 34. Rb7+ {[%clk 0:00:41.8]} 34... Kf8 {[%clk
0:00:39.5]} 35. Kh2 {[%clk 0:00:40.5]} 35... Bc6 {[%clk 0:00:32.7]} 36. Rxb6
{[%clk 0:00:37.2]} 1-0